Workbook

Sheet паспорт
A1: ПАТ "УКРТРАНСГАЗ" | G1: ПАСПОРТ ФІЗИКО-ХІМІЧНИХ ПОКАЗНИКІВ ПРИРОДНОГО ГАЗУ № 642
A2: Філія УМГ "ХАРКІВТРАНСГАЗ" | G2: переданого Пролетарським ВУПЗГ та прийнятого ПАТ "ДНІПРОПЕТРОВСЬКГАЗ"
A3: Пролетарське ВУПЗГ | G3: Маршрут № 642
A4: Вимірювальна хіміко-аналітична лабораторія
A5: Свідоцтво № ПЧ-07-0/1158-2014 чинно до 22.10.2017 р. | K5: по газопроводу -відгалудженню Пролетарська СПЗГ-ШДКРІ | V5: за період з | X5: 01.04.2017 р. | Z5: по | AA5: 30.04.2017 р.
A7: Число місяця | B7: Компонентний склад, мол. % | N7: Фізико-хімічні показники газу обчислені на основі компонентного складу, 101,325 кПа | X7: Температура точки роси за вологою (Р = 3.92 МПа), °С | Y7: Температура точки роси за вуглеводнями, °С | Z7: Вміст сірководню, г/м3 | AA7: Вміст меркаптанової сірки, г/м3 | AB7: Вміст механічних домішок, г/м3
N8: Густина абсолютна, кг/м3,при 20 °С, | O8: Температура вимірювання/згоряння при 20/25°С
B9: метан, С1 | C9: етан, С2 | D9: пропан, С3 | E9: ізо-бутан, і-С4 | F9: н-бутан, н-С4 | G9: нео-пентан, нео-С5 | H9: ізо-пентан, і-С5 | I9: н-пентан, н-С5 | J9: гексани та вищі, С6+ | K9: кисень, О2 | L9: азот, N2 | M9: діоксид вуглецю, CО2 | O9: Теплота згоряння нижча | R9: Теплота згоряння вища | U9: Число Воббе вище
O10: ккал/м³ | P10: МДж/м³ | Q10: кВт⋅год/м³ | R10: ккал/м³ | S10: МДж/м³ | T10: кВт⋅год/м³ | U10: ккал/м³ | V10: МДж/м³ | W10: кВт⋅год/м³
A11: 1 | O11: =P11*238.8459 -> 8246.250236 | P11: 34.5254 | Q11: =P11/3.6 -> 9.590388889 | R11: =S11*238.8459 -> 9134.613676 | S11: 38.2448 | T11: =S11/3.6 -> 10.62355556 | AC11: =SUM(B11:M11)+$K$42+$N$42 -> 0
A12: 2 | O12: =P12*238.8459 -> 8246.250236 | P12: 34.5254 | Q12: =P12/3.6 -> 9.590388889 | R12: =S12*238.8459 -> 9134.613676 | S12: 38.2448 | T12: =S12/3.6 -> 10.62355556 | AC12: 0
A13: 3 | B13: 93.4333 | C13: 3.1974 | D13: 0.9051 | E13: 0.1287 | F13: 0.1576 | G13: 0.0004 | H13: 0.0441 | I13: 0.0318 | J13: 0.1981 | K13: 0.0045 | L13: 1.6075 | M13: 0.2916 | N13: 0.7217 | O13: 8277.419626 | P13: 34.6559 | Q13: 9.626638889 | R13: 9168.052102 | S13: 38.3848 | T13: 10.66244444 | U13: =V13*238.8459 -> 11844.15322 | V13: 49.5891 | W13: =V13/3.6 -> 13.77475 | AC13: 100.0001 | AD13: =IF(AC13=100,"ОК"," ") -> 
A14: 4 | O14: 8277.419626 | P14: 34.6559 | Q14: 9.626638889 | R14: 9168.052102 | S14: 38.3848 | T14: 10.66244444 | AC14: 0 | AD14: =IF(AC14=100,"ОК"," ") -> 
A15: 5 | O15: 8277.419626 | P15: 34.6559 | Q15: 9.626638889 | R15: 9168.052102 | S15: 38.3848 | T15: 10.66244444 | AC15: 0
A16: 6 | O16: 8277.419626 | P16: 34.6559 | Q16: 9.626638889 | R16: 9168.052102 | S16: 38.3848 | T16: 10.66244444 | AC16: 0
A17: 7 | B17: 93.5348 | C17: 3.2097 | D17: 0.9201 | E17: 0.1294 | F17: 0.1635 | G17: 0.0008 | H17: 0.043 | I17: 0.0326 | J17: 0.1555 | K17: 0.0051 | L17: 1.5103 | M17: 0.2952 | N17: 0.7203 | O17: 8275.580512 | P17: 34.6482 | Q17: 9.6245 | R17: 9166.380181 | S17: 38.3778 | T17: 10.6605 | U17: 11852.82333 | V17: 49.6254 | W17: 13.78483333 | X17: -9.6 | Y17: -2 | Z17: 0.0001 | AA17: 0.001 | AC17: 100 | AD17: ОК
A18: 8 | O18: 8275.580512 | P18: 34.6482 | Q18: 9.6245 | R18: 9166.380181 | S18: 38.3778 | T18: 10.6605 | AC18: 0
A19: 9 | O19: 8275.580512 | P19: 34.6482 | Q19: 9.6245 | R19: 9166.380181 | S19: 38.3778 | T19: 10.6605 | AC19: 0
A20: 10 | O20: 8275.580512 | P20: 34.6482 | Q20: =P20/3.6 -> 9.6245 | R20: 9166.380181 | S20: 38.3778 | T20: =S20/3.6 -> 10.6605 | AC20: 0
A21: 11 | B21: 93.663 | C21: 3.2063 | D21: 0.9203 | E21: 0.1295 | F21: 0.1636 | G21: 0.0027 | H21: 0.0427 | I21: 0.0327 | J21: 0.0975 | K21: 0.0052 | L21: 1.4365 | M21: 0.3 | N21: 0.7184 | O21: 8263.471025 | P21: 34.5975 | Q21: 9.610416667 | R21: 9153.62581 | S21: 38.3244 | T21: 10.64566667 | U21: 11852.7039 | V21: 49.6249 | W21: 13.78469444 | X21: -9 | Y21: -1.9 | AB21: відсутні | AC21: 100 | AD21: ОК
A22: 12 | O22: 8263.471025 | P22: 34.5975 | Q22: 9.610416667 | R22: 9153.62581 | S22: 38.3244 | T22: 10.64566667 | AC22: 0
A23: 13 | O23: 8263.471025 | P23: 34.5975 | Q23: 9.610416667 | R23: 9153.62581 | S23: 38.3244 | T23: 10.64566667 | AC23: 0
A24: 14 | O24: 8263.471025 | P24: 34.5975 | Q24: 9.610416667 | R24: 9153.62581 | S24: 38.3244 | T24: 10.64566667 | AC24: 0
A25: 15 | O25: 8263.471025 | P25: 34.5975 | Q25: 9.610416667 | R25: 9153.62581 | S25: 38.3244 | T25: 10.64566667 | AC25: 0
A26: 16 | O26: 8263.471025 | P26: 34.5975 | Q26: =P26/3.6 -> 9.610416667 | R26: 9153.62581 | S26: 38.3244 | T26: =S26/3.6 -> 10.64566667 | AC26: 0
A27: 17 | O27: 8263.471025 | P27: 34.5975 | Q27: 9.610416667 | R27: 9153.62581 | S27: 38.3244 | T27: 10.64566667 | AC27: 0
A28: 18 | O28: 8263.471025 | P28: 34.5975 | Q28: 9.610416667 | R28: 9153.62581 | S28: 38.3244 | T28: 10.64566667 | AC28: 0
A29: 19 | B29: 93.3201 | C29: 3.2405 | D29: 0.937 | E29: 0.1334 | F29: 0.1709 | G29: 0.0005 | H29: 0.0463 | I29: 0.036 | J29: 0.227 | K29: 0.0049 | L29: 1.5834 | M29: 0.2999 | N29: 0.7236 | O29: 8299.202372 | P29: 34.7471 | Q29: 9.651972222 | R29: 9191.435116 | S29: 38.4827 | T29: 10.68963889 | U29: 11858.53174 | V29: 49.6493 | W29: 13.79147222 | X29: -11.8 | Y29: -2.4 | Z29: 0.0002 | AA29: 0.002 | AC29: 99.9999
A30: 20 | O30: 8299.202372 | P30: 34.7471 | Q30: 9.651972222 | R30: 9191.435116 | S30: 38.4827 | T30: 10.68963889 | AC30: 0 | AD30: =IF(AC30=100,"ОК"," ") -> 
A31: 21 | O31: 8299.202372 | P31: 34.7471 | Q31: 9.651972222 | R31: 9191.435116 | S31: 38.4827 | T31: 10.68963889 | AC31: 0
A32: 22 | O32: 8299.202372 | P32: 34.7471 | Q32: 9.651972222 | R32: 9191.435116 | S32: 38.4827 | T32: 10.68963889 | AC32: 0
A33: 23 | O33: 8299.202372 | P33: 34.7471 | Q33: =P33/3.6 -> 9.651972222 | R33: 9191.435116 | S33: 38.4827 | T33: =S33/3.6 -> 10.68963889 | AC33: 0 | AD33: =IF(AC33=100,"ОК"," ") -> 
A34: 24 | O34: 8299.202372 | P34: 34.7471 | Q34: 9.651972222 | R34: 9191.435116 | S34: 38.4827 | T34: 10.68963889 | AC34: 0
A35: 25 | B35: 93.6427 | C35: 3.18 | D35: 0.9061 | E35: 0.1268 | F35: 0.1616 | G35: 0.0016 | H35: 0.043 | I35: 0.0323 | J35: 0.1117 | K35: 0.0033 | L35: 1.4828 | M35: 0.3081 | N35: 0.7187 | O35: 8259.100145 | P35: 34.5792 | Q35: 9.605333333 | R35: 9148.777238 | S35: 38.3041 | T35: 10.64002778 | U35: 11843.96214 | V35: 49.5883 | W35: 13.77452778 | AB35: відсутні | AC35: 100 | AD35: ОК
A36: 26 | B36: 93.5646 | C36: 3.163 | D36: 0.902 | E36: 0.1257 | F36: 0.1602 | G36: 0.0026 | H36: 0.042 | I36: 0.0316 | J36: 0.17 | K36: 0.0074 | L36: 1.5255 | M36: 0.3054 | N36: 0.7204 | O36: 8271.35294 | P36: 34.6305 | Q36: 9.619583333 | R36: 9161.746571 | S36: 38.3584 | T36: =S36/3.6 -> 10.65511111 | U36: 11846.68499 | V36: 49.5997 | W36: 13.77769444 | AC36: 100 | AD36: ОК
A37: 27 | B37: 93.5408 | C37: 3.0383 | D37: 0.8635 | E37: 0.122 | F37: 0.152 | G37: 0.001 | H37: 0.0446 | I37: 0.0337 | J37: 0.1264 | K37: 0.0077 | L37: 1.775 | M37: 0.2948 | N37: 0.7189 | O37: 8224.706336 | P37: 34.4352 | Q37: 9.565333333 | R37: 9111.039586 | S37: 38.1461 | T37: 10.59613889 | U37: 11793.25516 | V37: 49.376 | W37: 13.71555556 | AC37: 99.9998
A38: 28 | B38: 93.5916 | C38: 3.0696 | D38: 0.8727 | E38: 0.1241 | F38: 0.1557 | G38: 0.0041 | H38: 0.0426 | I38: 0.0318 | J38: 0.1857 | K38: 0.0035 | L38: 1.6185 | M38: 0.3 | N38: 0.7203 | O38: 8259.458414 | P38: 34.5807 | Q38: 9.60575 | R38: 9148.753354 | S38: 38.304 | T38: 10.64 | U38: 11830.77785 | V38: 49.5331 | W38: 13.75919444 | AC38: 99.9999
A39: 29 | O39: 8259.458414 | P39: 34.5807 | Q39: 9.60575 | R39: 9148.753354 | S39: 38.304 | T39: 10.64 | AC39: 0
A40: 30 | O40: 8259.458414 | P40: 34.5807 | Q40: 9.60575 | R40: 9148.753354 | S40: 38.304 | T40: 10.64 | AC40: 0
A41: 31 | O41: 0 | Q41: 0 | R41: 0 | T41: 0 | U41: 0 | W41: 0 | AC41: 0
A42: Рівень одоризації відповідає чинним нормативним документам | O42: 8275.245705 | P42: 34.64679823 | Q42: 9.624110619 | R42: 9165.911768 | S42: 38.37583885 | T42: 10.65995524
H43: Середньозважене значення теплоти згоряння:
B45: Начальник управління Пролетарського ВУПЗГ | O45: Андрусів В.М. | V45: 03.05.2017 р.
C46: Підрозділу підприємства, якому підпорядкована лабораторія | O46: прізвище | R46: підпис | V46: дата
B47: Завідувач лабораторії | O47: Рекунович В.В. | V47: 03.05.2017 р.
C48: Лабораторія, де здійснювалось вимірювання газу | O48: прізвище | R48: підпис | V48: дата
B49: Інженер з метрології ІІ кат | O49: Поліщук О.С. | V49: 03.05.2017 р.
C50: Підрозділу, відповідального за облік газу за маршрутом | O50: прізвище | R50: підпис | V50: дата

Sheet розрахунок (hidden)
A2: Додаток до Паспорту фізико-хімічних показників природного газу по маршруту № 642
A4: Число місяця | B4: Теплота згоряння вища, МДж/м3 | C4: Дніпропетровська область | D4: Загальний обсяг газу, м3
C5: Обсяг газу переданого за добу, м3
C6: АГРС-1/3
A7: 1 | B7: =паспорт!S11 -> 38.2448 | C7: 108.2 | D7: =SUM(C7:C7) -> 108.2
A8: 2 | B8: =паспорт!S12 -> 38.2448 | C8: 81.7 | D8: 81.7
A9: 3 | B9: =паспорт!S13 -> 38.3848 | C9: 31.7 | D9: 31.7
A10: 4 | B10: =паспорт!S14 -> 38.3848 | C10: 71.7 | D10: 71.7
A11: 5 | B11: =паспорт!S15 -> 38.3848 | C11: 19.1 | D11: 19.1
A12: 6 | B12: =паспорт!S16 -> 38.3848 | C12: 0 | D12: 0
A13: 7 | B13: =паспорт!S17 -> 38.3778 | C13: 21.2 | D13: 21.2
A14: 8 | B14: =паспорт!S18 -> 38.3778 | C14: 39.1 | D14: 39.1
A15: 9 | B15: =паспорт!S19 -> 38.3778 | C15: 55.4 | D15: 55.4
A16: 10 | B16: =паспорт!S20 -> 38.3778 | C16: 57 | D16: 57
A17: 11 | B17: =паспорт!S21 -> 38.3244 | C17: 56.9 | D17: 56.9
A18: 12 | B18: =паспорт!S22 -> 38.3244 | C18: 70.9 | D18: 70.9
A19: 13 | B19: =паспорт!S23 -> 38.3244 | C19: 29.4 | D19: 29.4
A20: 14 | B20: =паспорт!S24 -> 38.3244 | C20: 69.9 | D20: 69.9
A21: 15 | B21: =паспорт!S25 -> 38.3244 | C21: 72.2 | D21: 72.2
A22: 16 | B22: =паспорт!S26 -> 38.3244 | C22: 66.1 | D22: 66.1
A23: 17 | B23: =паспорт!S27 -> 38.3244 | C23: 70.3 | D23: 70.3
A24: 18 | B24: =паспорт!S28 -> 38.3244 | C24: 106.1 | D24: 106.1
A25: 19 | B25: =паспорт!S29 -> 38.4827 | C25: 91.8 | D25: 91.8
A26: 20 | B26: =паспорт!S30 -> 38.4827 | C26: 141.9 | D26: 141.9
A27: 21 | B27: =паспорт!S31 -> 38.4827 | C27: 132.8 | D27: 132.8
A28: 22 | B28: =паспорт!S32 -> 38.4827 | C28: 158.8 | D28: 158.8
A29: 23 | B29: =паспорт!S33 -> 38.4827 | C29: 73.4 | D29: 73.4
A30: 24 | B30: =паспорт!S34 -> 38.4827 | C30: 83.4 | D30: 83.4
A31: 25 | B31: =паспорт!S35 -> 38.3041 | C31: 88.5 | D31: 88.5
A32: 26 | B32: =паспорт!S36 -> 38.3584 | C32: 51 | D32: 51
A33: 27 | B33: =паспорт!S37 -> 38.1461 | C33: 32.5 | D33: 32.5
A34: 28 | B34: =паспорт!S38 -> 38.304 | C34: 29.7 | D34: 29.7
A35: 29 | B35: =паспорт!S39 -> 38.304 | C35: 36.1 | D35: 36.1
A36: 30 | B36: =паспорт!S40 -> 38.304 | C36: 29.8 | D36: 29.8
A37: 31 | B37: =паспорт!S41 -> 0 | D37: 0
A38: Загальний обсяг газу, м3 | C38: =SUM(C7:C37) -> 1976.6 | D38: =SUM(D7:D37) -> 1976.6
A39: Енергія, МДж | C39: =SUMPRODUCT(B7:B37,C7:C37) -> 75853.68307 | D39: =SUMPRODUCT(B7:B37,D7:D37) -> 75853.68307
A40: Теплота згоряння (середньозважене значення за місяць), МДж/м³ | C40: =C39/C38 -> 38.37583885 | D40: 38.37583885
A41: Теплота згоряння (середньозважене значення за місяць), ккал/м³ | C41: =C40*238.8459 -> 9165.911768 | D41: 9165.911768
A42: Теплота згоряння (середньозважене значення за місяць), кВт*год./м³ | C42: =C40/3.6 -> 10.65995524 | D42: 10.65995524

Sheet додаток
B1: Додаток до Паспорту фізико-хімічних показників природного газу № 642
B3: Область | C3: ГРС, прямий споживач | D3: Cередньозважене значення вищої теплоти згоряння
D4: МДж/м³ | E4: ккал/м³ | F4: кВт*год./м³
B5: Дніпропетровська область | C5: АГРС-1/3 Пролетарська | D5: =' розрахунок'!C40 -> 38.37583885 | E5: =' розрахунок'!C41 -> 9165.911768 | F5: =' розрахунок'!C42 -> 10.65995524
B6: Середньозважене значення вищої теплоти згоряння по маршруту № 642 | D6: =' розрахунок'!C40 -> 38.37583885 | E6: =' розрахунок'!C41 -> 9165.911768 | F6: =' розрахунок'!C42 -> 10.65995524
B10: Начальник управління Пролетарського ВУПЗГ | E10: Андрусів В.М. | G10: 03.05.2017 р
B11: Підрозділу підприємства, якому підпорядкована лабораторія | E11: прізвище | F11: підпис | G11: дата
B12: Завідувач лабораторії | E12: Рекунович В.В. | G12: 03.05.2017 р.
B13: Лабораторія, де здійснювалось вимірювання газу | E13: прізвище | F13: підпис | G13: дата
B14: Інженер з метрології ІІ кат | E14: Поліщук О.С. | G14: 03.05.2017 р.
B15: Підрозділу, відповідального за облік газу за маршрутом | E15: прізвище | F15: підпис | G15: дата

Sheet variablesList (hidden)
A1: 3 | B1: x:\gaysin | C1: 10, 11, 24, 25, 127, 128, 132, 180, 207, 215 | D1: x:\
B2: x:\Illinci
B3: x:\Talne
